Cogmind - Beta 15 --- EXPLORER MODE // 2025.06.20 @ 18:23:25 // Winter2019/RPGLIKE Player: User15V Result: Self-destructed Performance ------------- Evolutions (1) 500 Regions Visited (5) 1000 Robots Destroyed (0) 0 Value Destroyed (0) 0 Prototype IDs (24) 480 Alien Tech Used (0) 0 Bonus (595) 595 TOTAL SCORE: 2575 Bonus ------- Pacifist 200 Follower Combat Kills 95 Aligned with FarCom 300 Cogmind --------- Core Integrity 201/600 Matter 290/300 Energy 100/100 System Corruption 0% Temperature Cool (2) Movement Flying (40) Location -9/Exiles Parts ------- > --- POWER (1) -------- (None) > --- PROPULSION (1) --- Flight Unit > --- UTILITY (2) ------ (None) > --- WEAPON (1) ------- (None) > --- INVENTORY (0) ---- (None) Peak State ------------ > --- POWER ------------ (None) > --- PROPULSION ------- Flight Unit > --- UTILITY ---------- Bomb Drone Bay > --- WEAPON ----------- (None) > --- INVENTORY -------- (None) [Rating: 15] Favorites ----------- Power None Propulsion Flight Unit Flight Unit Flight Unit Utility Bomb Drone Bay Device Bomb Drone Bay Weapon None Build | -11 -10 -10 -9 -9 -9 ------- Run | Yrd Mat Min Mat Min Exi Slots Evolved 1 | . . . . 1 . Power . | . . . . . . Propulsion . | . . . . . . Utility 1 | . . . . 1 . Weapon . | . . . . . . Parts Attached 2 | . . 1 . 1 . Power . | . . . . . . Engine . | . . . . . . Core . | . . . . . . Reactor . | . . . . . . Propulsion 1 | . . 1 . . . Treads . | . . . . . . Leg . | . . . . . . Wheel . | . . . . . . Hover . | . . . . . . Flight 1 | . . 1 . . . Utility 1 | . . . . 1 . Device 1 | . . . . 1 . Storage . | . . . . . . Processor . | . . . . . . Hackware . | . . . . . . Protection . | . . . . . . Artifact . | . . . . . . Weapon . | . . . . . . Energy Gun . | . . . . . . Energy Cannon . | . . . . . . Ballistic Gun . | . . . . . . Ballistic Cannon . | . . . . . . Launcher . | . . . . . . Special Weapon . | . . . . . . Impact Weapon . | . . . . . . Slashing Weapon . | . . . . . . Piercing Weapon . | . . . . . . Special Melee Weapon . | . . . . . . Unidentified Prototypes 1 | . . . . 1 . Parts Lost . | . . . . . . Power . | . . . . . . Propulsion . | . . . . . . Utility . | . . . . . . Weapon . | . . . . . . Highest Loss Streak . | . . . . . . To Critical Strikes . | . . . . . . Average Backups . | . . . . . . Power . | . . . . . . Propulsion . | . . . . . . Utility . | . . . . . . Weapon . | . . . . . . Tool/Special . | . . . . . . Unused Backups . | . . . . . . Power . | . . . . . . Propulsion . | . . . . . . Utility . | . . . . . . Weapon . | . . . . . . Tool/Special . | . . . . . . Average Slot Usage (%) 19 | . . 1 25 32 33 Flight 13 | . . 1 25 22 20 Device 6 | . . . . 10 13 Peak Build Rating 15 | . . 1 1 15 15 Average Rating 4 | . . . 1 8 9 On Entrance 2 | . . . 1 1 15 Naked Turns 289 | . 128 161 . . . Heaviest Build 8 | . . . . 8 . Greatest Support 4 | 3 3 4 4 4 4 Greatest Overweight (x) 1 | . . . . 1 . Average Overweight (x) . | . . . . . . Largest Inventory Capacity . | . . . . . . Average Capacity . | . . . . . . Most Carried . | . . . . . . Average Carried . | . . . . . . Final Capacity . | . . . . . . Final Carried . | . . . . . . Class Distribution -------------------- 100% | Hacker-Mutant Dominant Class ---------------- Hacker-Mutant | -10/Materials Hacker-Mutant | -10/Mines Hacker-Mutant | -9/Materials Hacker-Mutant | -9/Mines Hacker-Mutant | -9/Exiles Resources | -11 -10 -10 -9 -9 -9 ----------- Run | Yrd Mat Min Mat Min Exi Matter Collected 210 | 200 . 10 . . . Remotely . | . . . . . . Salvage Created . | . . . . . . Parts . | . . . . . . Haulers Intercepted . | . . . . . . Recyclers Shooed . | . . . . . . Parts Field Recycled . | . . . . . . Retrieved Matter . | . . . . . . Parts Self-Destructed . | . . . . . . Prevented . | . . . . . . Kills | -11 -10 -10 -9 -9 -9 ------- Run | Yrd Mat Min Mat Min Exi Combat Hostiles Destroyed . | . . . . . . Classes Destroyed . | . . . . . . Best Kill Streak . | . . . . . . Combat Bots Only . | . . . . . . Max Kills in Single Turn . | . . . . . . Gunslinging . | . . . . . . Exploded . | . . . . . . Melee . | . . . . . . Uniques/NPCs Destroyed . | . . . . . . Combat | -11 -10 -10 -9 -9 -9 -------- Run | Yrd Mat Min Mat Min Exi Hostile Shots Fired 129 | . 88 36 5 . . Missed 55 | . 36 18 1 . . Hits 74 | . 52 18 4 . . Projectile 74 | . 52 18 4 . . Damage Taken 399 | . 279 94 26 . . Core 399 | . 279 94 26 . . Absorbed by Shields . | . . . . . . Ignored by Resistances 269 | . 191 62 16 . . Core Remaining (%) 68 | 100 . 37 . . . Volleys Fired . | . . . . . . Largest . | . . . . . . Hottest . | . . . . . . Shots Fired . | . . . . . . Gun . | . . . . . . Cannon . | . . . . . . Launcher . | . . . . . . Special . | . . . . . . Kinetic . | . . . . . . Thermal . | . . . . . . Explosive . | . . . . . . Electromagnetic . | . . . . . . Robot Hit Streak . | . . . . . . Robot Miss Streak . | . . . . . . Penetration Max . | . . . . . . Secondary Targets . | . . . . . . Shots Hit Robots . | . . . . . . Core Hits 3 | . 3 . . . . Critical Kills . | . . . . . . Critical Parts Destroyed . | . . . . . . Critical Strikes . | . . . . . . Melee Attacks . | . . . . . . Impact . | . . . . . . Slashing . | . . . . . . Piercing . | . . . . . . Sneak Attacks . | . . . . . . Combat Hostiles . | . . . . . . Follow-up Attacks . | . . . . . . Damage Inflicted 56 | . 31 25 . . . Guns . | . . . . . . Cannons . | . . . . . . Explosions . | . . . . . . Melee . | . . . . . . Ramming 56 | . 31 25 . . . Kinetic . | . . . . . . Thermal . | . . . . . . Explosive . | . . . . . . Electromagnetic . | . . . . . . Impact . | . . . . . . Slashing . | . . . . . . Piercing . | . . . . . . Highest Corruption 3 | . 3 3 . . . Average Corruption 2 | . 2 3 . . . Corruption Purged . | . . . . . . Corruption Blocked . | . . . . . . Effects 3 | . 1 2 . . . Message Errors 1 | . . 1 . . . Heat Flow Errors 1 | . 1 . . . . Data Loss (minor) 1 | . . 1 . . . Overload Shots . | . . . . . . Overflow Damage . | . . . . . . Projectiles . | . . . . . . Explosions . | . . . . . . Melee . | . . . . . . Knockbacks . | . . . . . . Impact . | . . . . . . Kinetic . | . . . . . . Secondary . | . . . . . . Self-Inflicted Damage 25 | . 13 12 . . . Shots . | . . . . . . Rammed 16 | . 13 3 . . . Targets Rammed 16 | . 13 3 . . . Kicked . | . . . . . . Crushed . | . . . . . . Highest Temperature 212 | . 212 . . . . Average Temperature 112 | . 112 . . . . Received Heat Transfer 75 | . 45 6 24 . . Siege Activations . | . . . . . . Martial Activations . | . . . . . . Shielding Activations . | . . . . . . Robots Disrupted . | . . . . . . Combat Hostiles . | . . . . . . Robots Corrupted . | . . . . . . Combat Hostiles . | . . . . . . Parts Fried . | . . . . . . Impact Corruptions . | . . . . . . Robots Melted . | . . . . . . Combat Hostiles . | . . . . . . Parts Melted . | . . . . . . Heat Transferred . | . . . . . . Parts Sabotaged . | . . . . . . Parts Stolen . | . . . . . . Parts Stripped . | . . . . . . Power Chain Reactions . | . . . . . . Alert | -11 -10 -10 -9 -9 -9 ------- Run | Yrd Mat Min Mat Min Exi Maximum Alert Level . | . . . . . . Low Security (%) 100 | 100 100 100 100 100 . Level 1 . | . . . . . . Level 2 . | . . . . . . Level 3 . | . . . . . . Level 4 . | . . . . . . Level 5 . | . . . . . . High Security . | . . . . . . Max Security . | . . . . . . Peak Influence 137 | . 120 137 51 15 . Initial 36 | . . 33 36 5 . Average 37 | . 42 88 34 2 . Influence Increases 500 | . 195 260 15 30 . Destroy 0b10 Robot/C 140 | . . 140 . . . Destroy Leader 40 | . . 40 . . . Allied During Kill 5 | . . 5 . . . Partial Spotted 30 | . 15 . 15 . . Lose Combat Pursuer 285 | . 180 75 . 30 . Influence Decreases 500 | . 75 247 127 51 . Entered New Map 200 | . . 87 97 16 . Time Decay 260 | . 75 120 30 35 . Lost Ally 40 | . . 40 . . . Squads Dispatched 1 | . . . 1 . . Investigation . | . . . . . . Extermination . | . . . . . . Reinforcement 1 | . . . 1 . . Assault . | . . . . . . Garrison . | . . . . . . Intercept . | . . . . . . Searches Triggered . | . . . . . . Construction Impeded . | . . . . . . Haulers Reinforced . | . . . . . . Active Scanning Responses . | . . . . . . Cargo Convoy Interrupts . | . . . . . . Stealth | -11 -10 -10 -9 -9 -9 --------- Run | Yrd Mat Min Mat Min Exi Distress Signals 2 | . 1 . 1 . . Communications Jammed . | . . . . . . Distress Signals . | . . . . . . Times Spotted 40 | . 20 12 6 2 . Peak Tracking Total 9 | . 9 4 5 2 . Tactical Retreats 9 | . 5 3 . 1 . Traps | -11 -10 -10 -9 -9 -9 ------- Run | Yrd Mat Min Mat Min Exi Traps Triggered . | . . . . . . Indirectly . | . . . . . . Trap Hack Attempts . | . . . . . . Triggered . | . . . . . . Disarmed . | . . . . . . Reprogrammed . | . . . . . . Reused . | . . . . . . Traps Extracted . | . . . . . . Installed . | . . . . . . Triggered . | . . . . . . Machines | -11 -10 -10 -9 -9 -9 ---------- Run | Yrd Mat Min Mat Min Exi Machines Disabled . | . . . . . . Max in Single Turn . | . . . . . . Machines Repaired . | . . . . . . Machines Dismantled . | . . . . . . Machines Sabotaged . | . . . . . . Overloaded Fab Kills . | . . . . . . Hacking | -11 -10 -10 -9 -9 -9 --------- Run | Yrd Mat Min Mat Min Exi Machines Accessed 2 | . . . . 1 1 Terminals . | . . . . . . Fabricators . | . . . . . . Repair Stations . | . . . . . . Recycling Units . | . . . . . . Scanalyzers . | . . . . . . Garrison Access . | . . . . . . Total Hacks 2 | . . . . 1 1 Successful 2 | . . . . 1 1 Failed . | . . . . . . Catastrophic . | . . . . . . Database Lockouts . | . . . . . . Manual 1 | . . . . . 1 Terminals . | . . . . . . Fabricators . | . . . . . . Repair Stations . | . . . . . . Recycling Units . | . . . . . . Scanalyzers . | . . . . . . Garrison Access . | . . . . . . Terminal Hacks 2 | . . . . 1 1 Open Door 1 | . . . . 1 . Proto ID Catalog 1 | . . . . . 1 Fabricator Hacks . | . . . . . . Repair Station Hacks . | . . . . . . Recycling Unit Hacks . | . . . . . . Scanalyzer . | . . . . . . Garrison Access Hacks . | . . . . . . Unauthorized Hacks . | . . . . . . Terminals . | . . . . . . Fabricators . | . . . . . . Repair Stations . | . . . . . . Recycling Units . | . . . . . . Scanalyzers . | . . . . . . Garrison Access . | . . . . . . Data Cores Recovered . | . . . . . . Used . | . . . . . . Hacking Detections . | . . . . . . Full Trace Events . | . . . . . . Feedback Events . | . . . . . . Feedback Blocked . | . . . . . . Robot Schematics Acquired . | . . . . . . Robots Built . | . . . . . . Authchips . | . . . . . . Time . | . . . . . . Total Robot Build Rating . | . . . . . . Part Schematics Acquired . | . . . . . . Parts Built . | . . . . . . Authchips . | . . . . . . Time . | . . . . . . Total Part Build Rating . | . . . . . . Parts Repaired . | . . . . . . Time . | . . . . . . Parts Recycled . | . . . . . . Recycled Matter . | . . . . . . Retrieved Matter . | . . . . . . Retrieved Components . | . . . . . . Parts Scanalyzed . | . . . . . . Part Schematics Acquired . | . . . . . . Parts Damaged . | . . . . . . Bothacking | -11 -10 -10 -9 -9 -9 ------------ Run | Yrd Mat Min Mat Min Exi Used RIF Installer . | . . . . . . Robots Hacked . | . . . . . . Non-combat . | . . . . . . Combat . | . . . . . . Robot Hacks Applied . | . . . . . . Relay Couplers Released . | . . . . . . Fabnet Peak Effective % . | . . . . . . Robots Rewired . | . . . . . . Allies Hacked . | . . . . . . Hacks Repelled . | . . . . . . Allies | -11 -10 -10 -9 -9 -9 -------- Run | Yrd Mat Min Mat Min Exi Total Allies 3 | . . 3 . . . Largest Group 3 | . . 3 . . . Highest-Rated Group 40 | . . 40 . . . Highest-Rated Ally 16 | . . 16 . . . Total Orders 4 | . . . . 2 2 EXPLORE 2 | . . . . 1 1 RETURN 2 | . . . . 1 1 Ally Attacks 33 | . . 33 . . . Total Damage 279 | . . 279 . . . Kills 7 | . . 7 . . . Allies Corrupted . | . . . . . . Allies Melted . | . . . . . . Intel | -11 -10 -10 -9 -9 -9 ------- Run | Yrd Mat Min Mat Min Exi Active Infowar (turns) . | . . . . . . Robot Analysis Total . | . . . . . . Derelict Logs Recovered . | . . . . . . Drone Launches 32 | . . . . 16 16 Drone Recoveries 32 | . . . . 16 16 Exploration | -11 -10 -10 -9 -9 -9 ------------- Run | Yrd Mat Min Mat Min Exi Turns Passed 791 | 15 128 172 55 253 168 Spaces Moved 1149 | 30 230 293 121 324 151 Core 526 | 30 230 266 . . . Treads . | . . . . . . Legs . | . . . . . . Wheels . | . . . . . . Hover . | . . . . . . Flight 623 | . . 27 121 324 151 Fastest Speed 40 | 50 50 40 40 40 40 Average Speed 46 | 50 50 49 40 47 40 Slowest Speed 120 | 50 50 50 40 120 40 Overloaded Moves . | . . . . . . Propulsion Burnouts . | . . . . . . Robots Hopped 5 | . . . 4 1 . Potential Cave-ins . | . . . . . . Cave-ins Triggered . | . . . . . . Exploration Rate (%) 53 | 3 56 58 16 99 88 Regions Visited 5 Branch Regions 3 Pre-discovered Areas . | . . . . . . Known Exits Taken 5 | 1 1 1 1 1 . Unknown Exits Taken . | . . . . . . Scrap Searched . | . . . . . . Spaces Dug . | . . . . . . Terrain Destroyed . | . . . . . . Melee . | . . . . . . Projectile . | . . . . . . AOE . | . . . . . . Terrain Rammed . | . . . . . . Walls Destroyed . | . . . . . . Machines Disabled . | . . . . . . Actions | -11 -10 -10 -9 -9 -9 --------- Run | Yrd Mat Min Mat Min Exi Total 1394 | 29 242 320 122 422 259 Wait 236 | . . 24 6 99 107 Move 1134 | 29 229 292 112 321 151 Hop 5 | . . . 4 1 . Pick Up . | . . . . . . Fast Attach 2 | . . 1 . 1 . Attach . | . . . . . . Detach . | . . . . . . Swap . | . . . . . . Drop 1 | . . . . . 1 Fire . | . . . . . . Melee . | . . . . . . Ram 16 | . 13 3 . . . Kick . | . . . . . . Crush . | . . . . . . Escape Stasis . | . . . . . . Rewire . | . . . . . . Trap . | . . . . . . Miscellaneous . | . . . . . . Route ------- -11/Scrapyard -10/Materials (discovered 2 exits: *Mat / *Min) -10/Mines (discovered 2 exits: *Mat x2) -9/Materials -9/Mines (discovered 3 exits: *Mat x2 / *Exi) -9/Exiles (discovered 2 exits: *Min x2) History --------- Turn | Location | Event 6 | -11/Scrapyard | Identified exit to Materials 6 | -11/Scrapyard | Discovered exit to Materials (range 16) 16 | -11/Scrapyard | Entered Materials 106 | -10/Materials | Identified exit to Materials 106 | -10/Materials | Discovered exit to Materials (range 16) 142 | -10/Materials | Identified exit to Mines 142 | -10/Materials | Discovered exit to Mines (range 6) 144 | -10/Materials | Entered Mines 171 | -10/Mines | Core integrity fell below 50% 179 | -10/Mines | Discovered exit to Materials (range 9) 184 | -10/Mines | Assisted by bots powering up and referring to "LRC-V3" 248 | -10/Mines | Discovered exit to Materials (range 3) 305 | -10/Mines | Build established: Hacker-Mutant 316 | -10/Mines | Reached level 2 316 | -10/Mines | Entered Materials 317 | -9/Materials | Core integrity fell below 50% 318 | -9/Materials | Reached level 3 361 | -9/Materials | Identified exit to Mines 361 | -9/Materials | Discovered exit to Mines (range 3) 371 | -9/Materials | Entered Mines 373 | -9/Mines | Reached level 4 377 | -9/Mines | Met a Derelict bent on vengeance 475 | -9/Mines | Identified exit to Materials 475 | -9/Mines | Discovered exit to Materials (range 11) 489 | -9/Mines | Found the Drone Emporium 489 | -9/Mines | Upgraded with Utility slot (x1) 490 | -9/Mines | Found Prototype Device 490 | -9/Mines | Identified Bomb Drone Bay 523 | -9/Mines | Discovered exit to Materials (range 21) 601 | -9/Mines | A Derelict revealed a hidden shortcut to a safe place 617 | -9/Mines | Deemed a non-threat by the Exiles lab entrance 618 | -9/Mines | Identified exit to Exiles 618 | -9/Mines | Discovered exit to Exiles (range 5) 624 | -9/Mines | Entered Exiles 648 | -9/Exiles | Identified exit to Mines 648 | -9/Exiles | Discovered exit to Mines (range 28) 665 | -9/Exiles | Discovered exit to Mines (range 131) 743 | -9/Exiles | Met 8R-AWN 749 | -9/Exiles | Met EX-HEX 760 | -9/Exiles | Met EX-BIN 781 | -9/Exiles | Aligned with FarCom system 781 | -9/Exiles | Given EX-Vault access code 790 | -9/Exiles | Opened EX-Vault 792 | -9/Exiles | Self-destructed Last Messages --------------- Modified TNC 0b10 Alert Chip Cloak of Protection Skeleton Box Trap Reconfigurator Supersonic Drone Bay Army-in-a-Box PSU Rigger Chronowheel AWS/Thermal Latent Energy Streamer Gui. Plasma Cannon Firepult YOLO Cannon AWS/Gauss XL Autogun Array AWS/Autocannon Field Lobotomy Kit Longsword +1 Deploy-a-Sentry Map ----- +----------------------------------------------------+ | | | | | | | | | | | | | | | | | | | | | | | | | | | | | | | | | | | | | | | | | | | | | | | ?????????????????????????#???????????????????????? | | ?????????????????????####X####???????????????????? | | ?????????????????????# @&& #???????????????????? | | ?????????????????????# !#???????????????????? | | ?????????????????????# [ #???????????????????? | | ?????????????????????## ##???????????????????? | | ?????????????????????#X #????????????????????? | | ?????????????????????## #????????????????????? | | ??????????????????????# #????????????????????? | | ??????????????????????# #???#####????????????? | | ??????????????????????# #??"""""#????????????? | | ??????????????????????# ## """#????????????? | | ??????????????????????# X""#????????????? | | ??????????????????????# ## """#????????????? | | ????????????????####??# #??"""""#????????????? | | ????????????????"""""?# #???#####????????????? | | ???????????????"""" ## #????????????????????? | | ??????????????#""X" #????????????????????? | | ??????????????#" #????????????????????? | | ??????????????#" ## #????????????????????? | | ??????????????#""""""?# #?#########??????????? | | ??????????????##"###??# #?#"""""""#??????????? | | ??????????????????????# #?#"""""""#??????????? | | ??????????????????????# #?#"""""""#??????????? | | ?????????????????????## ###"" """"#??????????? | | ?????????????????????#" """"#??????????? | | ?????????????????????#" """#??????????? | +----------------------------------------------------+ Best States ------------- Heat Dissipation 25 Energy Generation 5 Energy Capacity 100 Matter Stores 300 Matter Capacity 300 Sight Range 16 Terrain Scan Density 10 Resistance: KI 35 Resistance: TH 35 Resistance: EX 35 Resistance: EM 35 Resistance: I 35 Resistance: S 35 Resistance: P 35 Evasion (%) 62 Offensive Hacking 20 Item Schematics ----------------- None Robot Schematics ------------------ None Fabricated ------------ Nothing Repaired ---------- Nothing Alien Tech Used ----------------- None Achievements -------------- None Challenges ------------ None RPGLIKE | -11 -10 -10 -9 -9 -9 --------- Run | Yrd Mat Min Mat Min Exi Levels Raised 3 | . . 1 1 1 . XP Earned 11076 | 6000 . 1544 2533 649 350 XP Spent 500 | . . . . 500 . Upgrades 1 | . . . . 1 . Utility Slot 1 | . . . . 1 . Protomatter Created . | . . . . . . Protomatter Decayed 112 | . . 40 . 72 . Game ------ Seed DispersalLauncherSword Manual? 0 Play Time 00:09:28 Cumulative 549.5 hours Start 2025.06.20 @ 18:15:06 End 2025.06.20 @ 18:23:25 Sessions 1 Manual Loads 0 Difficulty Explorer Special Mode Winter2019/RPGLIKE Game No. 246 Rogue 104 Adventurer 111 Explorer 31 Win Type - Total 39 Types 20/5/1/6/1/1/1/1/1/2 Lore% 91 Gallery% 94 Achievement% 94 Wizard Run 0 Options --------- Layout 2 ASCII 0 Keyboard 0 Movement Mouse Keybinds 0 Fullscreen 2 Font 24/Smallcaps Map View 50x44 Zoom Use 0% Tactical HUD 1 Map Filters NONE Filters NONE Steam 1 RUN: 331b8c31-f85f-417e-8dd3-087266e1bc22